Cogmind - Beta 13 X2 @@@ ROGUE MODE // 2024.01.10 @ 20:59:22 Player: Minty Result: Destroyed by G-47 Trooper with Particle Gun Performance ------------- Evolutions (3) 1500 Regions Visited (7) 1400 Robots Destroyed (69) 345 Value Destroyed (2122) 2122 Prototype IDs (8) 160 Alien Tech Used (0) 0 Bonus (321) 321 TOTAL SCORE: 5848 Bonus ------- High Alert Combat Kills 121 Entered Garrisons 200 Cogmind --------- Core Integrity 0/700 Matter 281/300 Energy 100/100 System Corruption 3% Temperature Cool (6) Movement Flying (32) Location -7/Garrison Parts ------- > --- POWER (1) -------- (None) > --- PROPULSION (4) --- VTOL Module VTOL Module > --- UTILITY (5) ------ Improved Signal Interpreter Terrain Scan Processor > --- WEAPON (3) ------- Autogun Kinetic Spear > --- INVENTORY (5) ---- Advanced Myomer Leg Matter Filter Improved Field Recycling Unit (0) Tesla Rifle Peak State ------------ > --- POWER ------------ Micro Nuclear Core > --- PROPULSION ------- Advanced Treads Advanced Treads > --- UTILITY ---------- Improved Heat Sink Advanced Sensor Array Improved Signal Interpreter Terrain Scan Processor Corruption Screen > --- WEAPON ----------- Heavy Laser Gauss Rifle Kinetic Spear > --- INVENTORY -------- Advanced Myomer Leg Matter Filter Improved Field Recycling Unit Tesla Rifle Hypervelocity Coil Gun [Rating: 44] Favorites ----------- Power Light Ion Engine Engine Light Ion Engine Power Core Micro Nuclear Core Propulsion Medium Treads Treads Medium Treads Leg Aluminum Leg Flight Unit VTOL Module Utility Terrain Scan Processor Device Seismic Detector Storage Small Storage Unit Processor Terrain Scan Processor Protection Scrap Shield Weapon Heavy Laser Energy Gun Heavy Laser Ballistic Gun Subdweller Machine Gun Launcher Subdweller Shrapnel Launcher Special Weapon Mining Laser Slashing Weapon Greatsword Piercing Weapon Kinetic Spear Build | -11 -10 -10 -8 -7 -7 -7 -7 ------- Run | Yrd Mat Sub Mat Fac Was Fac Gar Slots Evolved 6 | . . . 4 2 . . . Power . | . . . . . . . . Propulsion 2 | . . . 1 1 . . . Utility 3 | . . . 2 1 . . . Weapon 1 | . . . 1 . . . . Parts Attached 79 | . 2 13 15 28 6 8 7 Power 9 | . . 3 1 3 . 1 1 Engine 7 | . . 3 1 3 . . . Core 2 | . . . . . . 1 1 Reactor . | . . . . . . . . Propulsion 14 | . . . 4 4 1 1 4 Treads 8 | . . . 4 3 . 1 . Leg 1 | . . . . . 1 . . Wheel . | . . . . . . . . Hover . | . . . . . . . . Flight 5 | . . . . 1 . . 4 Utility 25 | . 1 . 8 13 2 1 . Device 18 | . 1 . 5 9 2 1 . Storage 1 | . . . 1 . . . . Processor 4 | . . . . 4 . . . Hackware . | . . . . . . . . Protection 2 | . . . 2 . . . . Artifact . | . . . . . . . . Weapon 31 | . 1 10 2 8 3 5 2 Energy Gun 9 | . . 4 . 3 1 1 . Energy Cannon . | . . . . . . . . Ballistic Gun 13 | . . 5 . 2 1 3 2 Ballistic Cannon . | . . . . . . . . Launcher 4 | . . 1 2 1 . . . Special Weapon 2 | . 1 . . 1 . . . Impact Weapon . | . . . . . . . . Slashing Weapon 1 | . . . . 1 . . . Piercing Weapon 2 | . . . . . 1 1 . Special Melee Weapon . | . . . . . . . . Unidentified Prototypes 3 | . . . . . 3 . . Parts Lost 32 | . . 4 3 13 . . 12 Power 6 | . . 2 1 1 . . 2 Propulsion 10 | . . 1 . 5 . . 4 Utility 7 | . . . 1 3 . . 3 Weapon 9 | . . 1 1 4 . . 3 Highest Loss Streak 7 | . . 2 2 5 . . 7 To Critical Strikes . | . . . . . . . . Average Slot Usage (%) 74 | . 98 88 57 70 47 68 71 Engine 7 | . 14 13 5 5 . . . Treads 12 | . . . 16 27 7 9 6 Leg 7 | . 28 18 3 . . . . Device 13 | . 12 14 6 14 15 15 13 Storage 5 | . 14 14 1 . . . . Processor 6 | . . . . 7 23 23 21 Energy Gun 8 | . 17 12 7 6 . 1 4 Ballistic Gun 7 | . . 14 7 1 . 7 5 Slashing Weapon 1 | . . . . 3 . . . Naked Turns . | . . . . . . . . Heaviest Build 49 | 12 13 23 49 36 7 18 18 Greatest Support 112 | 20 20 20 84 112 3 44 44 Greatest Overweight (x) 4 | . . 2 4 2 2 4 2 Average Overweight (x) . | . . . . . . . . Largest Inventory Capacity 8 | . 8 8 8 5 5 5 5 Average Capacity 6 | . 8 8 5 5 5 5 5 Most Carried 8 | . 7 8 8 5 5 5 5 Average Carried 5 | . 6 7 5 4 4 4 4 Final Capacity 8 | 8 8 8 5 5 5 5 5 Final Carried 8 | 6 7 8 5 2 5 5 4 Class Distribution -------------------- 40% | Mutant 24% | Subdweller-Mutant 19% | Scavenger-Mutant 6% | Scavenger-Skirmisher 3% | Subdweller-Tank Dominant Class ---------------- Mutant | -10/Materials Subdweller-Mutant | -10/Subcaves Subdweller-Tank | -8/Materials Scavenger-Mutant | -7/Factory Mutant | -7/Waste Mutant | -7/Factory Mutant | -7/Garrison Resources | -11 -10 -10 -8 -7 -7 -7 -7 ----------- Run | Yrd Mat Sub Mat Fac Was Fac Gar Matter Collected 1525 | 200 10 213 32 763 . 86 221 Remotely . | . . . . . . . . Salvage Created 2191 | . 26 446 261 1078 . 86 294 Parts 150 | . 4 28 22 71 . 5 20 Haulers Intercepted 1 | . . . 1 . . . . Recyclers Shooed 2 | . . . . 2 . . . Parts Field Recycled . | . . . . . . . . Retrieved Matter . | . . . . . . . . Parts Self-Destructed 10 | . . 10 . . . . . Prevented . | . . . . . . . . Kills | -11 -10 -10 -8 -7 -7 -7 -7 ------- Run | Yrd Mat Sub Mat Fac Was Fac Gar Combat Hostiles Destroyed 48 | . . 6 13 18 . 1 10 Melee 6 | . . . . 3 . 1 2 Guns 26 | . . 6 2 10 . . 8 AOE 16 | . . . 11 5 . . . Classes Destroyed 13 | . 1 5 3 4 . . . Worker 9 | . . . 2 7 . . . Builder 7 | . . . 2 4 . 1 . Tunneler 1 | . 1 . . . . . . Hauler 1 | . . . 1 . . . . Recycler 1 | . . . . 1 . . . Watcher 2 | . . . . 2 . . . Swarmer 20 | . . 1 10 . . . 9 Grunt 16 | . . 1 3 12 . . . Sentry 3 | . . 1 . 1 . . 1 Hunter 3 | . . . . 2 . 1 . Programmer 3 | . . . . 3 . . . Cobbler 1 | . . 1 . . . . . Subdweller 3 | . . 3 . . . . . Best Kill Streak 9 | . 1 2 9 7 . 1 3 Combat Bots Only 7 | . . 2 7 3 . 1 3 Max Kills in Single Turn 5 | . 1 1 5 3 . 1 1 Gunslinging . | . . . . . . . . Exploded 4 | . . . 4 1 . . . Melee 1 | . . . . 1 . 1 1 Uniques/NPCs Destroyed . | . . . . . . . . Combat | -11 -10 -10 -8 -7 -7 -7 -7 -------- Run | Yrd Mat Sub Mat Fac Was Fac Gar Hostile Shots Fired 507 | . . 67 103 147 1 12 177 Missed 165 | . . 21 36 37 1 4 66 Damage Taken 4534 | . . 785 890 1607 . 94 1158 Core 976 | . . 176 89 263 . 48 400 Absorbed by Shields 71 | . . . . . . . 71 Core Remaining (%) 70 | 100 . 29 83 . . . . Volleys Fired 169 | . 14 55 11 51 . 9 29 Largest 3 | . 2 2 3 3 . 1 2 Hottest 199 | . 140 90 130 199 . 35 97 Shots Fired 299 | . 27 103 19 99 . 10 41 Gun 273 | . 16 102 12 92 . 10 41 Cannon . | . . . . . . . . Launcher 14 | . . 1 7 6 . . . Special 12 | . 11 . . 1 . . . Kinetic 138 | . . 53 15 31 . 10 29 Thermal 121 | . 27 37 . 45 . . 12 Explosive . | . . . . . . . . Electromagnetic 40 | . . 13 4 23 . . . Robot Hit Streak 13 | . 2 13 3 11 . 3 8 Robot Miss Streak 8 | . 1 3 3 8 . 2 4 Penetration Max . | . . . . . . . . Secondary Targets 5 | . . . . 3 . . 2 Max Gunslinging Chain 1 | . . . . 1 . . 1 Shots Hit Robots 197 | . 2 65 12 86 . 4 28 Core Hits 126 | . 1 25 20 64 . 2 14 Critical Kills 2 | . . . . . . 1 1 Critical Parts Destroyed . | . . . . . . . . Critical Strikes 5 | . . . . 3 . 1 1 Burn 3 | . . . . 3 . . . Destroy 2 | . . . . . . 1 1 Melee Attacks 30 | . . . . 19 . 3 8 Impact . | . . . . . . . . Slashing 19 | . . . . 19 . . . Piercing 11 | . . . . . . 3 8 Sneak Attacks 7 | . . . . 7 . . . Combat Hostiles . | . . . . . . . . Follow-up Attacks . | . . . . . . . . Damage Inflicted 5950 | . 21 741 1151 3357 . 98 582 Guns 2605 | . 21 741 168 1266 . 14 395 Cannons . | . . . . . . . . Explosions 1878 | . . . 971 907 . . . Melee 1432 | . . . . 1161 . 84 187 Ramming 23 | . . . 12 11 . . . Kinetic 2687 | . . 388 1077 949 . 14 259 Thermal 1503 | . 21 353 15 978 . . 136 Explosive . | . . . . . . . . Electromagnetic 305 | . . . 47 258 . . . Impact . | . . . . . . . . Slashing 1161 | . . . . 1161 . . . Piercing 271 | . . . . . . 84 187 Highest Corruption 3 | . . . . 3 3 3 3 Average Corruption 2 | . . . . 1 3 3 3 Corruption Purged . | . . . . . . . . Corruption Blocked 7 | . . . . . 7 . . Effects 16 | . . . . 6 . 3 7 Message Errors 7 | . . . . 3 . . 4 Matter Fused 2 | . . . . 1 . . 1 Energy Discharges 2 | . . . . . . 1 1 Data Loss (minor) 3 | . . . . 1 . 1 1 Misfires 1 | . . . . . . 1 . Alerts 1 | . . . . 1 . . . Overload Shots . | . . . . . . . . Overflow Damage 235 | . . . 80 141 . . 14 Projectiles . | . . . . . . . . Explosions 93 | . . . 80 13 . . . Melee 142 | . . . . 128 . . 14 Knockbacks . | . . . . . . . . Impact . | . . . . . . . . Kinetic . | . . . . . . . . Secondary . | . . . . . . . . Self-Inflicted Damage 116 | . . . 22 94 . . . Shots 4 | . . . 1 3 . . . Rammed 9 | . . . 3 6 . . . Targets Rammed 10 | . . . 4 6 . . . Kicked 1 | . . . 1 . . . . Crushed . | . . . . . . . . Highest Temperature 405 | . 294 269 69 405 . . 75 Average Temperature 112 | . 142 158 29 136 . . 27 Received Heat Transfer 1184 | . . 437 225 438 . . 84 Effects 6 | . . . . 6 . . . Energy Bleed 1 | . . . . 1 . . . Interference 5 | . . . . 5 . . . Siege Activations . | . . . . . . . . Robots Corrupted . | . . . . . . . . Combat Hostiles . | . . . . . . . . Parts Fried . | . . . . . . . . Impact Corruptions . | . . . . . . . . Robots Melted . | . . . . . . . . Combat Hostiles . | . . . . . . . . Parts Melted 2 | . . 1 . 1 . . . Heat Transferred 3105 | . 50 800 50 1946 . . 259 Parts Sabotaged . | . . . . . . . . Parts Stolen . | . . . . . . . . Parts Stripped . | . . . . . . . . Power Chain Reactions 2 | . . . . 2 . . . Missiles Intercepted . | . . . . . . . . Alert | -11 -10 -10 -8 -7 -7 -7 -7 ------- Run | Yrd Mat Sub Mat Fac Was Fac Gar Peak Influence 579 | . 5 . 579 567 209 197 327 Initial 263 | . . . . 263 194 146 137 Average 267 | . 4 . 158 349 195 170 249 Maximum Alert Level 2 | . . . 2 2 1 . 1 Low Security (%) 35 | . 100 . 69 6 92 100 27 Level 1 44 | . . . 6 64 8 . 72 Level 2 19 | . . . 24 28 . . . Level 3 . | . . . . . . . . Level 4 . | . . . . . . . . Level 5 . | . . . . . . . . High Security . | . . . . . . . . Max Security . | . . . . . . . . Squads Dispatched 13 | . . . 3 9 . 1 . Investigation 6 | . . . 2 3 . 1 . Extermination 2 | . . . . 2 . . . Reinforcement 3 | . . . 1 2 . . . Assault . | . . . . . . . . Garrison 2 | . . . . 2 . . . Intercept . | . . . . . . . . Searches Triggered . | . . . . . . . . Construction Impeded 1 | . . . . 1 . . . Haulers Reinforced . | . . . . . . . . Active Scanning Responses . | . . . . . . . . Cargo Convoy Interrupts . | . . . . . . . . Stealth | -11 -10 -10 -8 -7 -7 -7 -7 --------- Run | Yrd Mat Sub Mat Fac Was Fac Gar Distress Signals 4 | . . . 2 2 . . . Communications Jammed . | . . . . . . . . Distress Signals . | . . . . . . . . Times Spotted 94 | . . 9 25 36 6 2 16 Peak Tracking Total 12 | . . 3 12 6 6 1 6 Tactical Retreats 4 | . . . 1 2 . . 1 Traps | -11 -10 -10 -8 -7 -7 -7 -7 ------- Run | Yrd Mat Sub Mat Fac Was Fac Gar Traps Triggered 5 | . . 2 . 1 . . 2 Indirectly . | . . . . . . . . Trap Hack Attempts . | . . . . . . . . Triggered . | . . . . . . . . Disarmed . | . . . . . . . . Reprogrammed . | . . . . . . . . Reused 1 | . . 1 . . . . . Traps Extracted . | . . . . . . . . Installed 1 | . . 1 . . . . . Triggered 1 | . . 1 . . . . . Most Traps Carried 1 | . . 1 . . . . . Machines | -11 -10 -10 -8 -7 -7 -7 -7 ---------- Run | Yrd Mat Sub Mat Fac Was Fac Gar Machines Disabled 11 | . . . 7 2 . . 2 Max in Single Turn 2 | . . . 2 2 . . 1 Garrison Relay 1 | . . . . . . . 1 Machines Repaired . | . . . . . . . . Machines Dismantled . | . . . . . . . . Machines Sabotaged . | . . . . . . . . Overloaded Fab Kills . | . . . . . . . . Hacking | -11 -10 -10 -8 -7 -7 -7 -7 --------- Run | Yrd Mat Sub Mat Fac Was Fac Gar Machines Accessed 8 | . . . 2 3 . 2 1 Terminals 5 | . . . 2 2 . . 1 Fabricators . | . . . . . . . . Repair Stations . | . . . . . . . . Recycling Units 1 | . . . . . . 1 . Scanalyzers 1 | . . . . 1 . . . Garrison Access 1 | . . . . . . 1 . Total Hacks 21 | . . . 8 7 . 4 2 Successful 7 | . . . 3 . . 3 1 Failed 14 | . . . 5 7 . 1 1 Catastrophic 4 | . . . 1 3 . . . Database Lockouts . | . . . . . . . . Manual 11 | . . . 6 5 . . . Terminals 15 | . . . 8 5 . . 2 Fabricators . | . . . . . . . . Repair Stations . | . . . . . . . . Recycling Units 3 | . . . . . . 3 . Scanalyzers 2 | . . . . 2 . . . Garrison Access 1 | . . . . . . 1 . Terminal Hacks 4 | . . . 3 . . . 1 Prototype ID Bank 3 | . . . 3 . . . . Security Stations 1 | . . . . . . . 1 Fabricator Hacks . | . . . . . . . . Repair Station Hacks . | . . . . . . . . Recycling Unit Hacks 2 | . . . . . . 2 . Report Inventory 1 | . . . . . . 1 . Retrieve Components 1 | . . . . . . 1 . Scanalyzer . | . . . . . . . . Garrison Access Hacks 1 | . . . . . . 1 . Unlock Access 1 | . . . . . . 1 . Unauthorized Hacks . | . . . . . . . . Terminals . | . . . . . . . . Fabricators . | . . . . . . . . Repair Stations . | . . . . . . . . Recycling Units . | . . . . . . . . Scanalyzers . | . . . . . . . . Garrison Access . | . . . . . . . . Data Cores Recovered . | . . . . . . . . Used . | . . . . . . . . Hacking Detections 7 | . . . 2 3 . 1 1 Full Trace Events 6 | . . . 2 3 . 1 . Feedback Events 1 | . . . . 1 . . . Corruption 1 | . . . . 1 . . . Feedback Blocked . | . . . . . . . . Robot Schematics Acquired . | . . . . . . . . Robots Built . | . . . . . . . . Authchips . | . . . . . . . . Time . | . . . . . . . . Total Robot Build Rating . | . . . . . . . . Part Schematics Acquired . | . . . . . . . . Parts Built . | . . . . . . . . Authchips . | . . . . . . . . Time . | . . . . . . . . Total Part Build Rating . | . . . . . . . . Parts Repaired . | . . . . . . . . Time . | . . . . . . . . Parts Recycled . | . . . . . . . . Recycled Matter . | . . . . . . . . Retrieved Matter . | . . . . . . . . Retrieved Components 1 | . . . . . . 1 . Parts Scanalyzed . | . . . . . . . . Part Schematics Acquired . | . . . . . . . . Parts Damaged . | . . . . . . . . Bothacking | -11 -10 -10 -8 -7 -7 -7 -7 ------------ Run | Yrd Mat Sub Mat Fac Was Fac Gar Used RIF Installer . | . . . . . . . . Robots Hacked . | . . . . . . . . Non-combat . | . . . . . . . . Combat . | . . . . . . . . Robot Hacks Applied . | . . . . . . . . Relay Couplers Released 3 | . . . . . . . 3 Machine Destruction 3 | . . . . . . . 3 Fabnet Peak Effective % . | . . . . . . . . Robots Rewired . | . . . . . . . . Allies Hacked . | . . . . . . . . Hacks Repelled . | . . . . . . . . Allies | -11 -10 -10 -8 -7 -7 -7 -7 -------- Run | Yrd Mat Sub Mat Fac Was Fac Gar Total Allies . | . . . . . . . . Largest Group . | . . . . . . . . Highest-Rated Group . | . . . . . . . . Highest-Rated Ally . | . . . . . . . . Total Orders . | . . . . . . . . Ally Attacks . | . . . . . . . . Total Damage . | . . . . . . . . Kills . | . . . . . . . . Allies Corrupted . | . . . . . . . . Allies Melted . | . . . . . . . . Intel | -11 -10 -10 -8 -7 -7 -7 -7 ------- Run | Yrd Mat Sub Mat Fac Was Fac Gar Robot Analysis Total . | . . . . . . . . Derelict Logs Recovered . | . . . . . . . . Drone Launches . | . . . . . . . . Drone Recoveries . | . . . . . . . . Exploration | -11 -10 -10 -8 -7 -7 -7 -7 ------------- Run | Yrd Mat Sub Mat Fac Was Fac Gar Turns Passed 3247 | . 94 1063 362 1169 100 197 262 Spaces Moved 2006 | 1 23 525 220 767 162 143 165 Core 691 | . . . 108 356 162 61 4 Treads 658 | . . . 73 410 . 82 93 Legs 588 | 1 23 525 39 . . . . Wheels . | . . . . . . . . Hover . | . . . . . . . . Flight 69 | . . . . 1 . . 68 Fastest Speed 26 | 120 120 120 50 50 50 50 26 Average Speed 122 | 120 120 164 132 114 50 110 95 Slowest Speed 400 | 120 120 260 400 225 150 250 150 Overloaded Moves . | . . . . . . . . Propulsion Burnouts . | . . . . . . . . Robots Hopped . | . . . . . . . . Cave-ins Triggered . | . . . . . . . . Exploration Rate (%) 25 | 2 4 34 33 21 88 3 22 Regions Visited 7 Branch Regions 1 Pre-discovered Areas . | . . . . . . . . Known Exits Taken 1 | . . . . . . 1 . Unknown Exits Taken 4 | 1 1 1 1 . . . . Scrap Searched . | . . . . . . . . Spaces Dug . | . . . . . . . . Terrain Destroyed 140 | . . 11 83 45 . 1 . Melee . | . . . . . . . . Projectile . | . . . . . . . . AOE 139 | . . 11 83 45 . . . Terrain Rammed . | . . . . . . . . Walls Destroyed . | . . . . . . . . Machines Disabled . | . . . . . . . . Actions | -11 -10 -10 -8 -7 -7 -7 -7 --------- Run | Yrd Mat Sub Mat Fac Was Fac Gar Total 2447 | . 40 637 275 934 179 167 215 Wait 61 | . 1 3 . 48 4 . 5 Move 2001 | . 22 524 219 767 161 143 165 Hop . | . . . . . . . . Pick Up 33 | . . 17 8 5 2 1 . Fast Attach 40 | . 2 4 4 15 4 5 6 Attach 24 | . . 2 10 8 1 2 1 Detach 14 | . 1 2 4 3 3 1 . Swap 15 | . . 7 1 5 1 1 . Drop 48 | . . 22 14 7 3 2 . Fire 169 | . 14 55 11 51 . 9 29 Melee 30 | . . . . 19 . 3 8 Ram 2 | . . . . 2 . . . Kick 1 | . . . 1 . . . . Crush 7 | . . . 3 4 . . . Escape Stasis 1 | . . . . . . . 1 Rewire . | . . . . . . . . Trap 1 | . . 1 . . . . . Miscellaneous . | . . . . . . . . Route ------- -11/Scrapyard -10/Materials -10/Subcaves (discovered 2 exits: *Mat x2) -8/Materials -7/Factory -7/Waste -7/Factory -7/Garrison History --------- Turn | Location | Event 1 | -11/Scrapyard | Discovered new exit (range 0) 1 | -11/Scrapyard | Entered Materials 94 | -10/Materials | Discovered new exit (range 2) 95 | -10/Materials | Entered Subcaves 277 | -10/Subcaves | Core integrity fell below 50% 311 | -10/Subcaves | Discovered new exit (range 11) 315 | -10/Subcaves | Build established: Mutant 657 | -10/Subcaves | Discovered new exit (range 7) 751 | -10/Subcaves | A swath of the cavern ceiling suddenly collapsed 781 | -10/Subcaves | Build established: Subdweller-Mutant 1158 | -10/Subcaves | Entered Materials 1158 | -8/Materials | Evolved 4 slots: Propulsion x1, Utility x2, Weapon x1 1471 | -8/Materials | Destroyed 7 combat bots 1516 | -8/Materials | Discovered new exit (range 8) 1520 | -8/Materials | Entered Factory 1520 | -7/Factory | Evolved 2 slots: Propulsion x1, Utility x1 1746 | -7/Factory | Build established: Mutant 2126 | -7/Factory | Build established: Scavenger-Mutant 2522 | -7/Factory | Garrison activated, responded to threat 2659 | -7/Factory | Lost 5 parts (1p1n1u2w) 2689 | -7/Factory | Sucked down chute 2689 | -7/Factory | Entered Waste 2704 | -7/Waste | EMP discharged 2707 | -7/Waste | Spotted C-40 Crusher 2727 | -7/Waste | Spotted C-40 Crusher 2729 | -7/Waste | Spotted C-40 Crusher 2730 | -7/Waste | Spotted C-40 Crusher 2732 | -7/Waste | Spotted C-40 Crusher 2779 | -7/Waste | Spotted C-40 Crusher 2781 | -7/Waste | Discovered new exit (range 15) 2787 | -7/Waste | Identified exit to Factory 2789 | -7/Waste | Entered Factory 2986 | -7/Factory | Identified exit to Garrison 2986 | -7/Factory | Entered Garrison 3013 | -7/Garrison | Learned Factory security intel 3025 | -7/Garrison | Core integrity fell below 50% 3057 | -7/Garrison | Garrison Relay disabled 3182 | -7/Garrison | Core integrity fell below 20% 3229 | -7/Garrison | Lost 7 parts (1p1n2u3w) 3248 | -7/Garrison | Destroyed by G-47 Trooper with Particle Gun Last Messages --------------- 03204_ Acquired 27 matter. 03205_ Acquired Lgt. Nuclear Core. 03207_ Acquired 10 matter. 03208_ Acquired VTOL Module. 03210_ Acquired Autogun. 03212_ Acquired VTOL Module. 03214_ Acquired 30 matter. 03215_ System corrupted: Energy discharge (-13). 03226_ RIF Installer disabled. 03231_ Triggered Stasis Trap. 03231_ A bubble of rippling energy engulfs the area. 03231_ Field strength at 95. 03231_ Field strength at 90. 03236_ VTOL Module destroyed. 03241_ S-27 Virus destroyed. 03242_ Lgt. Nuclear Core destroyed. 03244_ VTOL Module destroyed. 03245_ System corrupted: Matter fused (-7). 03245_ Adv. Sensor Array destroyed. 03245_ S-27 Virus destroyed. Map ----- +----------------------------------------------------+ | ???????????# #????????????????# #?????????#???? | | ???????????### #????????????????#[ #??????? #???? | | ?????????????# ###?????????????##%=##""""## ##??? | | ?????????????# #"#?????????????# * #### | | ?????????????# !"#?????????????# = | | ?????????????# ! #?????????????#*%= | | ?????????????# !"#?????????????# [ ## ## #### | | ?????????????# #"#?????????????# ## ## #??? | | ?????????????#####?????????????" "??? | | ???????????????????????????????" "??? | | ???????????????????????????????" "??? | | ???????????????????????????????" "??? | | ???????????????????????????????# ## ## #??? | | ???????????????????????????????# ## ## ###? | | ???????????????????????????????# | | ???????????????????????????????# | | ???????????????????????????????# ###? | | ???????????????????????????????# ##""""## ##??? | | ???????????????????????????????# #??????? #???? | | ???????????????????????????????# #?????????#???? | | ???????????????????????????????# #?????????????? | | ???????????????????????????????# #?????????????? | | ???????????????????????????????# #?????????????? | | ???????????????????????????????# #?????????????? | | ?????????????????############### #?????????????? | | ?????????? @%= g #?????????????? | | ?????????? =[ sg #?????????????? | | ??????????# =%* #?????????????? | | ??????????? ################## ###?????????????? | | ??????????????????????????????## ##??????????????? | | ??????????????????????????????# #??????????????? | | ??????????????????????????????#" #??????????????? | | ??????????????????????????????#" "#??????????????? | | ??????????????????????????????#" "#??????????????? | | ??????????????????????????????#"""#??????????????? | | ??????????????????????????????#####??????????????? | | ?????????????????????????????????????????????????? | | ?????????????????????????????????????????????????? | | ?????????????????????????????????????????????????? | | ?????????????????????????????????????????????????? | | ?????????????????????????????????????????????????? | | ?????????????????????????????????????????????????? | | ?????????????????????????????????????????????????? | | ?????????????????????????????????????????????????? | | ?????????????????????????????????????????????????? | | ?????????????????????????????????????????????????? | | ?????????????????????????????????????????????????? | | ?????????????????????????????????????????????????? | | ?????????????????????????????????????????????????? | | ?????????????????????????????????????????????????? | +----------------------------------------------------+ Best States ------------- Heat Dissipation 48 Energy Generation 16 Energy Capacity 290 Matter Stores 300 Matter Capacity 300 Sight Range 16 Robot Scan Range 16 Terrain Scan Range 14 Terrain Scan Density 160 Corruption Block 8 Armor Coverage 800 Evasion (%) 64 Recoil Reduction 4 Matter Filtering 30 Item Schematics ----------------- None Robot Schematics ------------------ None Fabricated ------------ Nothing Alien Tech Used ----------------- None Achievements -------------- None Challenges ------------ None Game ------ Seed NovaGaussPendant Manual? 0 Play Time 00:22:53 Cumulative 582.4 hours Start 2024.01.10 @ 20:36:05 End 2024.01.10 @ 20:59:22 Sessions 1 Manual Loads 0 Difficulty Rogue Special Mode None Game No. 493 Rogue 220 Adventurer 123 Explorer 150 Win Type - Total 25 Types 19/0/4/1/0/0/0/1/0 Lore% 78 Gallery% 90 Achievement% 75 Wizard Run 0 Options --------- ASCII 0 Keyboard 1 Movement Numpad Keybinds 0 Fullscreen 2 Font 18/X11Bold Map View 76x50 Zoom Use 10% Tactical HUD 1 Map Filters NONE Filters NONE Steam 1 RUN: 0dbcf0a5-9c0e-457a-a7f8-b7a0451ed041